[Event "WYCC 2018 O14"]
[Site "Halkidiki"]
[Date "2018.10.22"]
[Round "4"]
[White "Manafov, Vugar"]
[Black "Nguyen, Huynh Minh Thien"]
[Result "0-1"]
[ECO "A05"]
[WhiteElo "2245"]
[BlackElo "1996"]
[Annotator "NA"]
[PlyCount "98"]
[EventDate "2018.10.20"]
[EventType "swiss"]
[EventCountry "GRE"]
[SourceTitle "playchess.com"]
[Source "ChessBase"]
[SourceQuality "1"]
[TimeControl "40/5400+30:1800+30"]

1. Nf3 {[%emt 0:00:00]} Nf6 {[%emt 0:00:00]} 2. g3 {[%emt 0:00:00]} g6 {[%emt 0:00:08]} 3. b3 {[%emt 0:00:00]} Bg7 {[%emt 0:00:12]} 4. Bb2 {[%emt 0:00:00]} O-O {[%emt 0:00:10]} 5. Bg2 {[%emt 0:00:00]} d5 {[%emt 0:00:16]} 6. c4 {[%emt 0:00:00]} c6 {[%emt 0:02:49]} 7. O-O {[%emt 0:00:05]} a5 {[%emt 0:02:59]} 8. d3 {[%emt 0:01:32]} Nbd7 {[%emt 0:00:48] A11: English Opening: 1...c6} (8... a4 9. Nbd2 Na6 10. Qc1 Bg4 11. Bc3 Nc7 12. h3 Bxf3 13. Nxf3 Ne6 14. b4 d4 15. Bd2 Nd7 16. Rb1 Qc7 {1-0 (42) Banusz,T (2612)-Indjic,A (2599) Valjevo 2018}) 9. Nbd2 {[%emt 0:00:55]} Re8 {[%emt 0:00:57]} 10. Rc1 {[%emt 0:00:34]} e5 {[%emt 0:00:46]} 11. cxd5 {[%emt 0:00:37]} cxd5 {[%emt 0:00:44]} 12. e4 $146 {[%emt 0:00:16]} ({Predecessor:} 12. Qc2 Qe7 13. Nb1 b5 14. Nc3 Ba6 15. Nd2 Rac8 16. Qb1 {½-½ (57) Horvath,D (2310)-Puranik,A (2479) Pardubice 2017}) 12... d4 {[%emt 0:10:05]} 13. Nc4 {[%emt 0:01:54]} Bf8 {[%emt 0:00:54]} 14. a4 {[%emt 0:01:56]} b6 {[%emt 0:03:04]} 15. Ne1 {[%emt 0:09:21]} Nc5 {[%emt 0:19:17]} 16. f4 {[%emt 0:01:18]} Bg4 {[%emt 0:07:58]} 17. Nf3 {[%emt 0:01:43]} exf4 {[%emt 0:00:18]} 18. gxf4 {[%emt 0:00:10]} Bh6 {[%emt 0:00:38]} 19. h3 {[%emt 0:05:01]} Bh5 {[%emt 0:02:24]} 20. f5 $2 {[%emt 0:09:03]} (20. Qc2 $1 $11 Ne6 21. f5) 20... Bxc1 {[%emt 0:06:15]} 21. Bxc1 {[%emt 0:00:04]} gxf5 {[%emt 0:00:29]} 22. Qe1 {[%emt 0:02:41]} Nxd3 {[%emt 0:03:35]} 23. Qg3+ {[%emt 0:00:11]} Bg6 {[%emt 0:08:34]} 24. exf5 {[%emt 0:01:13]} Ne4 {[%emt 0:00:44]} 25. Qh2 {[%emt 0:00:49]} Nxc1 $19 {[%emt 0:00:43]} 26. Rxc1 {[%emt 0:00:08]} Bxf5 {[%emt 0:00:08]} 27. Qf4 {[%emt 0:00:03]} Bg6 {[%emt 0:00:41]} 28. Nfe5 {[%emt 0:00:14]} Nc3 {[%emt 0:03:48]} 29. Bf3 {[%emt 0:01:37]} Re6 {[%emt 0:05:14]} 30. Re1 {[%emt 0:01:22]} Rc8 {[%emt 0:02:02]} 31. Bg4 {[%emt 0:02:12]} Qh4 {[%emt 0:03:21]} 32. Rf1 {[%emt 0:05:38]} Rf8 {[%emt 0:02:35]} 33. Kh1 {[%emt 0:10:41]} Ne4 {[%emt 0:10:09]} 34. Bxe6 {[%emt 0:00:47]} Ng3+ {[%emt 0:00:05]} 35. Kg2 {[%emt 0:01:14]} Be4+ {[%emt 0:00:10]} 36. Kh2 {[%emt 0:00:06]} Nxf1+ {[%emt 0:00:12]} 37. Qxf1 {[%emt 0:00:05]} fxe6 {[%emt 0:00:11]} 38. Qg1+ {[%emt 0:00:06]} Bg6 {[%emt 0:01:15]} 39. Qg4 {[%emt 0:01:06]} Qf2+ {[%emt 0:01:56]} 40. Qg2 {[%emt 0:00:00]} Qf4+ {[%emt 0:00:00]} 41. Kg1 {[%emt 0:00:23]} Qc1+ {[%emt 0:01:50]} 42. Kh2 {[%emt 0:00:02]} Qc2 {[%emt 0:02:48]} 43. Qxc2 {[%emt 0:00:18]} Bxc2 {[%emt 0:00:04]} 44. Kg3 {[%emt 0:00:04]} d3 {[%emt 0:00:36]} 45. Nd2 {[%emt 0:00:05]} Rf5 {[%emt 0:01:47]} 46. Nec4 {[%emt 0:00:21]} b5 {[%emt 0:00:00]} 47. axb5 {[%emt 0:00:24]} Rxb5 {[%emt 0:00:10]} 48. Nd6 {[%emt 0:00:30]} Rb4 {[%emt 0:02:33]} 49. Nc8 {[%emt 0:00:00]} Rxb3 {[%emt 0:00:39]} 0-1

[Event "WYCC 2018 O14"]
[Site "Halkidiki"]
[Date "2018.10.22"]
[Round "4"]
[White "Turcan, Richard"]
[Black "Egorov, Mikhail"]
[Result "0-1"]
[ECO "B35"]
[WhiteElo "2218"]
[BlackElo "2006"]
[Annotator "NA"]
[PlyCount "72"]
[EventDate "2018.10.20"]
[EventType "swiss"]
[EventCountry "GRE"]
[SourceTitle "playchess.com"]
[Source "ChessBase"]
[SourceQuality "1"]
[TimeControl "40/5400+30:1800+30"]

1. e4 {[%emt 0:00:00]} c5 {[%emt 0:00:00]} 2. Nf3 {[%emt 0:00:00]} Nc6 {[%emt 0:00:00]} 3. d4 {[%emt 0:00:00]} cxd4 {[%emt 0:00:00]} 4. Nxd4 {[%emt 0:00:00]} g6 {[%emt 0:00:00]} 5. Nc3 {[%emt 0:00:00]} Bg7 {[%emt 0:00:01]} 6. Be3 {[%emt 0:00:00]} Nf6 {[%emt 0:00:06]} 7. Bc4 {[%emt 0:00:02]} O-O {[%emt 0:00:08]} 8. Bb3 {[%emt 0:00:03]} d6 {[%emt 0:01:32]} 9. f3 {[%emt 0:00:09]} Qa5 {[%emt 0:02:23]} 10. Qd2 {[%emt 0:02:24]} Nxd4 {[%emt 0:00:24]} 11. Bxd4 {[%emt 0:00:58]} Be6 {[%emt 0:01:44]} 12. O-O-O {[%emt 0:03:51]} b5 {[%emt 0:02:24]} 13. Kb1 {[%emt 0:02:02]} b4 {[%emt 0:01:11]} 14. Ne2 {[%emt 0:12:17]} Rfc8 {[%emt 0:09:36]} 15. g4 {[%emt 0:22:44]} Rc6 {[%emt 0:20:46]} 16. g5 {[%emt 0:04:38]} (16. Bxe6 $14 fxe6 17. c3) 16... Nh5 {[%emt 0:13:55]} 17. h4 {[%emt 0:32:51]} Rac8 $11 {[%emt 0:07:52]} 18. Bxg7 {[%emt 0:00:45]} Nxg7 {[%emt 0:03:49]} 19. Nd4 {[%emt 0:03:28]} Bxb3 {[%emt 0:03:20]} 20. Nxb3 {[%emt 0:00:01]} Qa4 {[%emt 0:03:11]} 21. Rh2 {[%emt 0:02:01]} Ne6 {[%emt 0:03:44]} 22. Qd5 {[%emt 0:04:17]} Ra6 {[%emt 0:06:42]} 23. Nc1 {[%emt 0:03:25]} Rac6 {[%emt 0:05:23]} 24. Qb3 {[%emt 0:00:39]} Qb5 {[%emt 0:01:11]} 25. Nd3 {[%emt 0:01:54]} a5 {[%emt 0:01:59]} 26. Qd5 {[%emt 0:00:57]} Nc5 {[%emt 0:02:50]} 27. h5 {[%emt 0:02:21]} e6 {[%emt 0:00:06]} 28. Qd4 {[%emt 0:00:06]} Nxd3 {[%emt 0:00:27]} 29. hxg6 {[%emt 0:00:25]} fxg6 {[%emt 0:05:55]} 30. Qxd3 {[%emt 0:01:15]} Qxg5 {[%emt 0:00:45]} 31. f4 {[%emt 0:00:25]} Qxf4 {[%emt 0:00:57]} 32. Qh3 {[%emt 0:00:16]} Qf7 {[%emt 0:00:36]} 33. Rf1 {[%emt 0:00:13]} Qe7 {[%emt 0:00:15]} 34. Rhf2 {[%emt 0:01:49]} R6c7 {[%emt 0:01:42]} 35. Rf6 {[%emt 0:00:37]} Rxc2 {[%emt 0:00:34]} 36. Qb3 {[%emt 0:00:34]} Qxf6 {[%emt 0:00:39]} 0-1

[Event "WYCC 2018 O14"]
[Site "Halkidiki"]
[Date "2018.10.22"]
[Round "4"]
[White "Van Dael, Siem"]
[Black "Sanger, Jake M"]
[Result "1-0"]
[ECO "C12"]
[WhiteElo "2202"]
[BlackElo "1880"]
[Annotator "NA"]
[PlyCount "57"]
[EventDate "2018.10.20"]
[EventType "swiss"]
[EventCountry "GRE"]
[SourceTitle "playchess.com"]
[Source "ChessBase"]
[SourceQuality "1"]
[TimeControl "40/5400+30:1800+30"]

1. e4 {[%emt 0:00:00]} e6 {[%emt 0:00:00]} 2. d4 {[%emt 0:00:00]} d5 {[%emt 0:00:00]} 3. Nc3 {[%emt 0:00:00]} Nf6 {[%emt 0:00:00]} 4. Bg5 {[%emt 0:00:00]} Bb4 {[%emt 0:00:00]} 5. e5 {[%emt 0:00:00]} h6 {[%emt 0:00:00]} 6. Be3 {[%emt 0:00:00]} Ne4 {[%emt 0:00:00]} 7. Qg4 {[%emt 0:00:00]} g6 {[%emt 0:00:02]} 8. a3 {[%emt 0:00:18]} Bxc3+ {[%emt 0:00:05]} 9. bxc3 {[%emt 0:00:05]} c5 {[%emt 0:00:12]} 10. Bd3 {[%emt 0:01:01] C12: French: Classical System: McCutcheon Variation} h5 (10... Nxc3 11. dxc5 Nc6 12. Nf3 Qa5 13. O-O Qa4 14. Qxa4 Nxa4 15. Bb5 Nc3 16. a4 Bd7 17. Ra3 Ne4 {½-½ (74) Ponkratov,P (2605)-Nguyen,N (2625) Khanty-Mansiysk 2013}) 11. Qf4 {[%emt 0:00:15]} g5 {[%emt 0:00:12]} 12. Qf3 {[%emt 0:00:06]} Nxc3 {[%emt 0:00:28]} 13. dxc5 {[%emt 0:00:41]} Nc6 {[%emt 0:00:31]} 14. Qg3 {[%emt 0:04:04]} Qa5 {[%emt 0:29:35]} 15. Kf1 {[%emt 0:04:12]} Rg8 {[%emt 0:12:17]} 16. Nf3 {[%emt 0:03:11]} Ne4 $146 {[%emt 0:15:20]} ({Predecessor:} 16... Bd7 17. Nxg5 O-O-O {1-0 (39) Eiben,P (2505)-Tazelaar,H (2476) ICCF email 2008}) 17. Bxe4 {[%emt 0:04:29]} dxe4 {[%emt 0:00:05]} 18. Nxg5 {[%emt 0:00:38]} Qc3 {[%emt 0:01:39]} 19. Rd1 {[%emt 0:01:18]} Nxe5 {[%emt 0:05:32]} 20. Qf4 $11 {[%emt 0:06:03]} ({Only move:} 20. Nxe4 $16 Rxg3 21. Nxc3) 20... Qxc2 {[%emt 0:08:28]} 21. Rc1 {[%emt 0:01:00]} Qb2 {[%emt 0:03:15]} 22. Nxe4 {[%emt 0:01:27]} f5 {[%emt 0:05:18]} 23. Nf6+ {[%emt 0:01:57]} Kf7 {[%emt 0:00:06]} 24. Nxg8 {[%emt 0:00:12]} Kxg8 {[%emt 0:00:49]} 25. Qg5+ {[%emt 0:00:32]} Kf8 {[%emt 0:00:10]} 26. Qf6+ {[%emt 0:01:45]} Ke8 {[%emt 0:00:19]} 27. Rd1 {[%emt 0:00:55]} Bd7 {[%emt 0:01:13]} 28. Qh8+ {[%emt 0:00:15]} Kf7 {[%emt 0:00:13]} 29. Rxd7+ {[%emt 0:00:08]} 1-0

[Event "WYCC 2018 O14"]
[Site "Halkidiki"]
[Date "2018.10.22"]
[Round "4"]
[White "Fecker, Noah"]
[Black "Dardha, Daniel"]
[Result "1/2-1/2"]
[ECO "B37"]
[WhiteElo "2184"]
[BlackElo "2316"]
[Annotator "NA"]
[PlyCount "64"]
[EventDate "2018.10.20"]
[EventType "swiss"]
[EventCountry "GRE"]
[SourceTitle "playchess.com"]
[Source "ChessBase"]
[SourceQuality "1"]
[TimeControl "40/5400+30:1800+30"]

1. e4 {[%emt 0:00:00]} c5 {[%emt 0:00:00]} 2. Nf3 {[%emt 0:00:00]} g6 {[%emt 0:00:00]} 3. d4 {[%emt 0:00:00]} cxd4 {[%emt 0:00:00]} 4. Nxd4 {[%emt 0:00:00]} Bg7 {[%emt 0:00:00]} 5. c4 {[%emt 0:00:02]} Nc6 {[%emt 0:00:00]} 6. Nc2 {[%emt 0:02:00]} Nf6 {[%emt 0:00:16]} 7. Nc3 {[%emt 0:00:03]} O-O {[%emt 0:01:37]} 8. Be2 {[%emt 0:00:29]} d6 {[%emt 0:00:31]} 9. O-O {[%emt 0:00:08]} Be6 {[%emt 0:03:09]} 10. Be3 {[%emt 0:12:36]} Nd7 {[%emt 0:11:53]} 11. Qd2 {[%emt 0:12:47]} Nc5 {[%emt 0:39:36]} 12. f3 {[%emt 0:05:11]} a5 {[%emt 0:07:17]} 13. b3 {[%emt 0:05:00]} Nb4 {[%emt 0:04:38]} 14. Nd4 {[%emt 0:09:05]} Nc6 {[%emt 0:00:32]} 15. Nc2 $11 {[%emt 0:01:01]} (15. Nxe6 $14 Nxe6 16. Rad1) 15... Nb4 {[%emt 0:00:57]} 16. Nd4 {[%emt 0:01:15]} Nc6 {[%emt 0:00:06]} 17. Rab1 {[%emt 0:12:38]} Nxd4 {[%emt 0:01:48]} 18. Bxd4 {[%emt 0:01:24]} Bxd4+ {[%emt 0:01:29]} 19. Qxd4 {[%emt 0:00:33]} Qb6 {[%emt 0:00:18]} 20. Rfd1 {[%emt 0:02:53]} Nd7 {[%emt 0:02:59]} 21. Qxb6 {[%emt 0:03:36]} Nxb6 {[%emt 0:00:01]} 22. Nd5 {[%emt 0:03:36]} Bxd5 {[%emt 0:04:21]} 23. exd5 {[%emt 0:01:16]} Rfc8 {[%emt 0:00:46]} 24. Rd4 {[%emt 0:01:49]} Rc7 {[%emt 0:01:03]} 25. f4 {[%emt 0:01:53]} Nd7 {[%emt 0:04:26]} 26. Kf2 {[%emt 0:02:41]} Nc5 {[%emt 0:02:17]} 27. Re1 {[%emt 0:03:28]} Ra6 {[%emt 0:00:39]} 28. Rb1 {[%emt 0:03:03]} Ra8 {[%emt 0:06:04]} 29. Kf3 {[%emt 0:00:28]} Re8 {[%emt 0:01:21]} 30. Rbd1 {[%emt 0:01:45]} Na6 {[%emt 0:00:20]} 31. R4d2 {[%emt 0:01:40]} Ra8 {[%emt 0:01:23]} 32. Rb1 {[%emt 0:00:59]} Nc5 {[%emt 0:01:26]} 1/2-1/2

[Event "WYCC 2018 O14"]
[Site "Halkidiki"]
[Date "2018.10.22"]
[Round "4"]
[White "Vitenberg, Noam Aviv"]
[Black "Thenuka, Kuruwita Gamalathge"]
[Result "1-0"]
[ECO "B50"]
[WhiteElo "2175"]
[BlackElo "1710"]
[Annotator "NA"]
[PlyCount "69"]
[EventDate "2018.10.20"]
[EventType "swiss"]
[EventCountry "GRE"]
[SourceTitle "playchess.com"]
[Source "ChessBase"]
[SourceQuality "1"]
[TimeControl "40/5400+30:1800+30"]

1. e4 {[%emt 0:00:00]} c5 {[%emt 0:00:10]} 2. Nf3 {[%emt 0:01:16]} d6 {[%emt 0:00:08]} 3. g3 {[%emt 0:00:55]} Nc6 {[%emt 0:01:39]} 4. Bg2 {[%emt 0:00:13]} g6 {[%emt 0:00:11]} 5. O-O {[%emt 0:00:34]} Bg7 {[%emt 0:00:06]} 6. c3 {[%emt 0:00:43]} Nf6 {[%emt 0:02:05]} 7. d4 {[%emt 0:00:53]} cxd4 {[%emt 0:02:06]} 8. cxd4 {[%emt 0:00:42]} O-O {[%emt 0:02:16]} 9. Nc3 {[%emt 0:00:22]} Bd7 {[%emt 0:06:20]} 10. d5 {[%emt 0:08:59]} Na5 $11 {[%emt 0:02:54]} 11. Qe2 {[%emt 0:09:12]} Rc8 {[%emt 0:02:18]} 12. Be3 {[%emt 0:03:26]} a6 {[%emt 0:05:21]} 13. Bd4 {[%emt 0:17:20]} b5 {[%emt 0:03:05]} 14. b4 {[%emt 0:04:03]} Nc4 {[%emt 0:02:44]} 15. a4 {[%emt 0:00:23]} Ng4 {[%emt 0:10:37]} 16. axb5 {[%emt 0:17:01]} axb5 {[%emt 0:00:51]} 17. Bxg7 {[%emt 0:01:25]} Kxg7 {[%emt 0:00:12]} 18. Nd4 {[%emt 0:08:59]} Qb6 {[%emt 0:20:21]} 19. Ndxb5 {[%emt 0:03:59]} Nge5 {[%emt 0:19:34]} 20. Na7 {[%emt 0:00:53]} Ra8 {[%emt 0:02:01]} 21. Nc6 {[%emt 0:00:45]} Bxc6 {[%emt 0:01:34]} 22. dxc6 {[%emt 0:00:22]} Qxc6 {[%emt 0:00:30]} 23. Rxa8 {[%emt 0:02:43]} Rxa8 {[%emt 0:01:38]} 24. f4 {[%emt 0:02:40]} Nd7 {[%emt 0:03:02]} 25. e5 {[%emt 0:01:37]} Qb6+ {[%emt 0:00:06]} 26. Kh1 {[%emt 0:00:18]} Rc8 {[%emt 0:00:53]} 27. Nd5 {[%emt 0:00:45]} Qd8 {[%emt 0:03:51]} 28. e6 {[%emt 0:00:31]} Nf8 {[%emt 0:03:54]} 29. exf7 {[%emt 0:06:01]} e6 {[%emt 0:00:06]} 30. Nc3 {[%emt 0:00:29]} d5 {[%emt 0:00:04]} 31. g4 {[%emt 0:02:24]} Qf6 {[%emt 0:02:51]} 32. f5 {[%emt 0:00:59]} Qxc3 {[%emt 0:00:53]} 33. fxe6 {[%emt 0:00:07]} Nxe6 {[%emt 0:00:46]} 34. Qxe6 {[%emt 0:00:41]} Ne3 {[%emt 0:00:05]} 35. f8=Q+ {[%emt 0:00:52]} 1-0

[Event "WYCC 2018 O14"]
[Site "Halkidiki"]
[Date "2018.10.22"]
[Round "4"]
[White "Lopez Varela, Pablo"]
[Black "Manucharyan, Gagik"]
[Result "1-0"]
[ECO "B20"]
[WhiteElo "2172"]
[BlackElo "1827"]
[Annotator "NA"]
[PlyCount "81"]
[EventDate "2018.10.20"]
[EventType "swiss"]
[EventCountry "GRE"]
[SourceTitle "playchess.com"]
[Source "ChessBase"]
[SourceQuality "1"]
[TimeControl "40/5400+30:1800+30"]

1. e4 {[%emt 0:00:00]} c5 {[%emt 0:00:00]} 2. d3 {[%emt 0:00:03]} g6 {[%emt 0:00:45]} 3. g3 {[%emt 0:00:08]} Bg7 {[%emt 0:00:10]} 4. Bg2 {[%emt 0:00:05]} e6 {[%emt 0:00:25]} 5. f4 {[%emt 0:00:08]} Nc6 {[%emt 0:00:15]} 6. c3 {[%emt 0:00:22]} Nge7 {[%emt 0:00:42]} 7. Be3 {[%emt 0:00:18]} b6 {[%emt 0:01:27]} 8. Nf3 {[%emt 0:01:39]} O-O {[%emt 0:02:16]} 9. O-O {[%emt 0:00:11]} d5 {[%emt 0:00:49]} 10. e5 {[%emt 0:02:02]} Bb7 {[%emt 0:02:18]} 11. Bf2 {[%emt 0:03:40]} Qd7 {[%emt 0:04:31]} 12. Na3 {[%emt 0:07:21]} a6 {[%emt 0:02:03]} 13. Nc2 $14 {[%emt 0:00:15]} Rfd8 {[%emt 0:10:45]} 14. Qd2 {[%emt 0:05:38]} Rac8 {[%emt 0:03:17]} 15. g4 {[%emt 0:02:11]} d4 {[%emt 0:16:44]} 16. c4 {[%emt 0:14:39]} b5 {[%emt 0:01:34]} 17. b3 {[%emt 0:00:13]} Qc7 {[%emt 0:00:41]} 18. Bh4 {[%emt 0:02:19]} Rd7 {[%emt 0:02:18]} 19. Qf2 {[%emt 0:07:10]} h6 {[%emt 0:10:09]} 20. Bf6 {[%emt 0:06:09]} Bxf6 {[%emt 0:07:02]} 21. exf6 {[%emt 0:00:06]} Qxf4 {[%emt 0:00:03]} 22. fxe7 {[%emt 0:00:56]} Qxg4 {[%emt 0:00:03]} 23. h3 {[%emt 0:02:00]} Qf4 {[%emt 0:01:36]} 24. Rae1 {[%emt 0:03:23]} Rxe7 {[%emt 0:01:44]} 25. Re4 {[%emt 0:02:49]} Qd6 {[%emt 0:01:15]} 26. Rh4 {[%emt 0:05:25]} Kg7 {[%emt 0:01:31]} 27. Ng5 {[%emt 0:10:43]} f5 {[%emt 0:01:41]} 28. Rxh6 {[%emt 0:02:01]} Rh8 {[%emt 0:03:00]} 29. Rxh8 {[%emt 0:04:39]} Kxh8 {[%emt 0:00:01]} 30. Qh4+ {[%emt 0:00:26]} Kg8 {[%emt 0:00:05]} 31. Ne1 {[%emt 0:01:52]} Nd8 {[%emt 0:03:12]} 32. Nef3 {[%emt 0:01:38]} e5 {[%emt 0:01:02]} 33. Qh6 {[%emt 0:02:09]} Rg7 {[%emt 0:04:45]} 34. Nh4 {[%emt 0:00:31]} Ne6 {[%emt 0:02:45]} 35. Bxb7 {[%emt 0:04:04]} Rxb7 {[%emt 0:00:47]} 36. Nxe6 {[%emt 0:00:23]} Qxe6 {[%emt 0:00:16]} 37. Rxf5 {[%emt 0:00:49]} Rg7 {[%emt 0:00:34]} 38. Rg5 {[%emt 0:03:02]} Qxh3 {[%emt 0:01:09]} 39. Rxg6 {[%emt 0:00:16]} Rxg6+ {[%emt 0:00:34]} 40. Qxg6+ {[%emt 0:00:00]} Kh8 {[%emt 0:00:00]} 41. Nf5 {[%emt 0:04:07]} 1-0

[Event "WYCC 2018 O14"]
[Site "Halkidiki"]
[Date "2018.10.22"]
[Round "4"]
[White "Turgut, Aydin"]
[Black "Tadic, Stefan"]
[Result "1/2-1/2"]
[ECO "B35"]
[WhiteElo "2156"]
[BlackElo "2295"]
[Annotator "NA"]
[PlyCount "72"]
[EventDate "2018.10.20"]
[EventType "swiss"]
[EventCountry "GRE"]
[SourceTitle "playchess.com"]
[Source "ChessBase"]
[SourceQuality "1"]
[TimeControl "40/5400+30:1800+30"]

1. e4 {[%emt 0:00:00]} c5 {[%emt 0:00:00]} 2. Nf3 {[%emt 0:00:00]} Nc6 {[%emt 0:00:39]} 3. d4 {[%emt 0:00:00]} cxd4 {[%emt 0:00:13]} 4. Nxd4 {[%emt 0:00:03]} g6 {[%emt 0:00:41]} 5. Be3 {[%emt 0:01:19]} Bg7 {[%emt 0:00:26]} 6. Nc3 {[%emt 0:00:12]} Nf6 {[%emt 0:00:47]} 7. Bc4 {[%emt 0:00:36]} O-O {[%emt 0:00:58]} 8. Bb3 {[%emt 0:00:17]} Re8 {[%emt 0:03:12] B35: Sicilian: Accelerated Dragon with 5 Nc3: main line} 9. Nxc6 {[%emt 0:12:49]} (9. f3 d5 10. exd5 Nb4 11. Nde2 e6 12. Bd4 exd5 13. Qd2 Nc6 14. O-O-O Nxd4 15. Nxd4 Bd7 16. g4 {1-0 (33) Navara,D (2740)-Gelfand,B (2703) Batumi 2018}) 9... dxc6 {[%emt 0:04:39] LiveBook: 17 Games} 10. Qxd8 {[%emt 0:01:56]} Rxd8 {[%emt 0:00:08]} 11. f3 {[%emt 0:00:58]} b6 {[%emt 0:18:51]} 12. e5 $146 {[%emt 0:24:36]} ({Predecessor:} 12. a4 Rd7 13. a5 Ba6 14. axb6 axb6 15. Kf2 Kf8 16. Rhd1 {1-0 (16) Gabrielian,A (2520)-Yagupov,I (2400) Kazan 2016}) 12... Nd5 {[%emt 0:13:41]} 13. O-O-O {[%emt 0:03:05]} Be6 {[%emt 0:03:12]} 14. Nxd5 {[%emt 0:02:40]} Bxd5 {[%emt 0:04:49]} 15. Bxd5 {[%emt 0:01:12]} cxd5 {[%emt 0:02:58]} 16. f4 $11 {[%emt 0:01:54]} Rac8 {[%emt 0:01:57]} 17. g4 {[%emt 0:13:44]} e6 {[%emt 0:05:34]} 18. h4 {[%emt 0:11:56]} Rc7 {[%emt 0:13:24]} 19. h5 {[%emt 0:01:40]} Rc4 {[%emt 0:14:08]} 20. Bd4 {[%emt 0:01:08]} b5 {[%emt 0:00:59]} 21. a3 {[%emt 0:03:29]} a5 {[%emt 0:02:56]} 22. b3 {[%emt 0:03:12]} Rc6 {[%emt 0:00:09]} 23. Kb2 {[%emt 0:00:38]} Bf8 {[%emt 0:02:20]} 24. Rd2 {[%emt 0:01:58]} Bc5 {[%emt 0:01:42]} 25. Rh3 {[%emt 0:05:49]} Rdc8 {[%emt 0:00:29]} 26. c3 {[%emt 0:02:30]} R8c7 {[%emt 0:02:04]} 27. h6 {[%emt 0:01:48]} Be7 {[%emt 0:00:37]} 28. b4 {[%emt 0:03:17]} axb4 {[%emt 0:00:20]} 29. axb4 {[%emt 0:00:04]} Ra6 {[%emt 0:00:22]} 30. Rd1 {[%emt 0:00:27]} Rc8 {[%emt 0:00:26]} 31. Ra1 {[%emt 0:00:08]} Rca8 {[%emt 0:00:05]} 32. Rxa6 {[%emt 0:00:11]} Rxa6 {[%emt 0:00:03]} 33. g5 {[%emt 0:01:28]} Kf8 {[%emt 0:00:27]} 34. Rh1 {[%emt 0:00:23]} Ke8 {[%emt 0:00:20]} 35. Ra1 {[%emt 0:01:25]} Rxa1 {[%emt 0:00:04]} 36. Kxa1 {[%emt 0:00:04]} Kd7 {[%emt 0:00:09]} 1/2-1/2

[Event "WYCC 2018 O14"]
[Site "Halkidiki"]
[Date "2018.10.22"]
[Round "4"]
[White "Patrelakis, Evaggelos"]
[Black "Nakahara, Kan"]
[Result "1-0"]
[ECO "C07"]
[WhiteElo "2146"]
[BlackElo "1850"]
[Annotator "NA"]
[PlyCount "159"]
[EventDate "2018.10.20"]
[EventType "swiss"]
[EventCountry "GRE"]
[SourceTitle "playchess.com"]
[Source "ChessBase"]
[SourceQuality "1"]
[TimeControl "40/5400+30:1800+30"]

1. e4 {[%emt 0:00:00]} e6 {[%emt 0:00:00]} 2. d4 {[%emt 0:00:00]} d5 {[%emt 0:00:00]} 3. Nd2 {[%emt 0:00:00]} c5 {[%emt 0:00:04]} 4. exd5 {[%emt 0:00:04]} Qxd5 {[%emt 0:00:10]} 5. Ngf3 {[%emt 0:00:06]} cxd4 {[%emt 0:00:37]} 6. Bc4 {[%emt 0:00:08]} Qd6 {[%emt 0:00:27]} 7. O-O {[%emt 0:00:09]} Nf6 {[%emt 0:00:06]} 8. Nb3 {[%emt 0:00:04]} Nc6 {[%emt 0:00:05]} 9. Nbxd4 {[%emt 0:00:08]} Nxd4 {[%emt 0:00:11]} 10. Nxd4 {[%emt 0:00:04]} Be7 {[%emt 0:00:13]} 11. c3 {[%emt 0:03:02]} O-O {[%emt 0:02:20]} 12. Qf3 {[%emt 0:00:20]} Qc7 {[%emt 0:01:27]} 13. Bb3 {[%emt 0:01:49]} Bd7 {[%emt 0:05:12]} 14. Re1 {[%emt 0:03:01]} Bd6 {[%emt 0:06:30]} 15. h3 {[%emt 0:01:22]} e5 {[%emt 0:06:44]} 16. Nc2 {[%emt 0:07:33]} a5 {[%emt 0:12:08]} 17. Ne3 {[%emt 0:12:02]} e4 {[%emt 0:08:03]} 18. Qe2 {[%emt 0:00:25]} Qc5 {[%emt 0:04:03]} 19. Bd2 {[%emt 0:19:38]} a4 {[%emt 0:09:59]} 20. Bc2 {[%emt 0:00:59]} Rac8 {[%emt 0:02:23]} 21. Nf1 {[%emt 0:22:34]} Rfe8 {[%emt 0:07:49]} 22. Be3 {[%emt 0:04:04]} Qf5 {[%emt 0:07:24]} 23. Qd2 {[%emt 0:02:55]} Bc5 {[%emt 0:03:29]} 24. Bxc5 {[%emt 0:00:41]} Qxc5 {[%emt 0:00:23]} 25. Ng3 {[%emt 0:01:22]} Bc6 {[%emt 0:00:30]} 26. Rad1 {[%emt 0:00:57]} Re7 {[%emt 0:02:28]} 27. Qd6 {[%emt 0:04:31]} Qxd6 {[%emt 0:01:09]} 28. Rxd6 {[%emt 0:00:02]} Rce8 {[%emt 0:01:09]} 29. Nf5 {[%emt 0:02:10]} Rd7 {[%emt 0:01:56]} 30. Rxd7 {[%emt 0:00:59]} Nxd7 {[%emt 0:00:18]} 31. Nd4 {[%emt 0:02:51]} Nc5 {[%emt 0:01:00]} 32. Rd1 {[%emt 0:02:29]} g6 {[%emt 0:02:14]} 33. Nxc6 {[%emt 0:01:33]} bxc6 {[%emt 0:00:01]} 34. Rd4 {[%emt 0:00:47]} Rb8 {[%emt 0:02:18]} 35. Rb4 {[%emt 0:00:12]} Rd8 {[%emt 0:01:10]} 36. Bxe4 {[%emt 0:00:43]} Rd1+ {[%emt 0:01:54]} 37. Kh2 {[%emt 0:00:02]} Nxe4 {[%emt 0:02:08]} 38. Rxe4 {[%emt 0:00:01]} Rd2 {[%emt 0:00:33]} 39. Rxa4 {[%emt 0:00:11]} Rxb2 {[%emt 0:00:46]} 40. Kg3 {[%emt 0:00:00]} Rc2 {[%emt 0:00:00]} 41. Rc4 {[%emt 0:00:43]} Rxa2 {[%emt 0:01:03]} 42. Rxc6 {[%emt 0:00:05]} Kf8 {[%emt 0:00:38]} 43. Rc7 {[%emt 0:00:38]} h6 {[%emt 0:01:55]} 44. h4 {[%emt 0:02:43]} Rc2 {[%emt 0:04:27]} 45. Kf3 {[%emt 0:00:51]} Ke8 {[%emt 0:01:48]} 46. g4 {[%emt 0:05:58]} Kd8 {[%emt 0:01:49]} 47. Rxf7 {[%emt 0:13:11]} Rxc3+ {[%emt 0:00:14]} 48. Kg2 {[%emt 0:00:03]} Rc6 {[%emt 0:03:24]} 49. Rh7 {[%emt 0:00:51]} g5 {[%emt 0:00:37]} 50. hxg5 {[%emt 0:00:07]} hxg5 {[%emt 0:00:13]} 51. Rg7 {[%emt 0:00:13]} Rc5 {[%emt 0:00:11]} 52. Rf7 {[%emt 0:00:11]} Rc4 {[%emt 0:02:25]} 53. Kg3 {[%emt 0:01:12]} Rc3+ {[%emt 0:00:25]} 54. Rf3 {[%emt 0:00:15]} Rc7 {[%emt 0:02:46]} 55. Rf5 {[%emt 0:01:04]} Rg7 {[%emt 0:00:04]} 56. Re5 {[%emt 0:07:32]} Kd7 {[%emt 0:01:20]} 57. Kf3 {[%emt 0:00:10]} Kd6 {[%emt 0:01:07]} 58. Ke4 {[%emt 0:00:10]} Rf7 {[%emt 0:00:33]} 59. Rf5 {[%emt 0:00:16]} Re7+ {[%emt 0:02:33]} 60. Kd4 {[%emt 0:00:11]} Rg7 {[%emt 0:00:22]} 61. Rf6+ {[%emt 0:00:32]} Ke7 {[%emt 0:00:07]} 62. Ke5 {[%emt 0:00:10]} Rg8 {[%emt 0:00:15]} 63. Kf5 {[%emt 0:00:18]} Rg7 {[%emt 0:00:45]} 64. f3 {[%emt 0:00:34]} Rg8 {[%emt 0:00:22]} 65. Rg6 {[%emt 0:00:14]} Rf8+ {[%emt 0:00:14]} 66. Ke4 {[%emt 0:00:07]} Re8 {[%emt 0:01:08]} 67. Rxg5 {[%emt 0:00:26]} Kf6+ {[%emt 0:00:20]} 68. Kf4 {[%emt 0:00:07]} Ra8 {[%emt 0:00:12]} 69. Rf5+ {[%emt 0:00:21]} Kg6 {[%emt 0:00:20]} 70. Re5 {[%emt 0:00:43]} Ra4+ {[%emt 0:00:16]} 71. Re4 {[%emt 0:00:01]} Ra6 {[%emt 0:00:20]} 72. g5 {[%emt 0:01:00]} Rb6 {[%emt 0:00:23]} 73. Kg4 {[%emt 0:00:21]} Rb1 {[%emt 0:00:36]} 74. Re6+ {[%emt 0:00:08]} Kf7 {[%emt 0:00:41]} 75. Rf6+ {[%emt 0:00:13]} Kg7 {[%emt 0:00:12]} 76. f4 {[%emt 0:00:18]} Rg1+ {[%emt 0:00:51]} 77. Kf5 {[%emt 0:00:14]} Rb1 {[%emt 0:00:08]} 78. Re6 {[%emt 0:01:09]} Rb5+ {[%emt 0:00:34]} 79. Re5 {[%emt 0:00:26]} Rb7 {[%emt 0:00:12]} 80. g6 {[%emt 0:01:23]} 1-0